Department family,Entity,Date,Expense Type,Expense area,Supplier,Transation number,Amount,Narrative
Department for Culture Media and Sport,Department for Culture Media and Sport,01/02/2017,Museum Loans (NCA) Additions,Museum Loans,Geffrye Museum,50002663,"48,000.00",Geffrye Museum Feb 2017 GIA payment
Department for Culture Media and Sport,Department for Culture Media and Sport,01/02/2017,Grant-in-Aid (DCMS NDPBs),GIA Museums & Galleries,Sir John Soane's Museum,50002662,"82,000.00",SJSM Feb 2017 GIA payment
Department for Culture Media and Sport,Department for Culture Media and Sport,01/02/2017,Grant-in-Aid (DCMS NDPBs),GIA Sports bodies,Sport Ground Safety Authority,50002675,"105,000.00",SGSA - February 2017 GIA payment
Department for Culture Media and Sport,Department for Culture Media and Sport,01/02/2017,Capital Grant Private Sector,GIA Architecture+Heritage,Greenwich Foundation for the RN College,50002649,"107,499.00",ORNC - February 2017 grant payment
Department for Culture Media and Sport,Department for Culture Media and Sport,01/02/2017,Capital Grant Private Sector,GIA Architecture+Heritage,Greenwich Foundation for the RN College,50002649,"107,499.00",ORNC - February 2017 grant payment
Department for Culture Media and Sport,Department for Culture Media and Sport,01/02/2017,Capital Grant Private Sector,GIA Architecture+Heritage,Chatham Historic Dockyard Trust,50002648,"118,000.00",CHD - February 2017 grant payment
Department for Culture Media and Sport,Department for Culture Media and Sport,01/02/2017,Capital Grant Private Sector,GIA Architecture+Heritage,Chatham Historic Dockyard Trust,50002648,"118,000.00",CHD - February 2017 grant payment
Department for Culture Media and Sport,Department for Culture Media and Sport,01/02/2017,Grant to OGD (Resource),Architecture + heritage progs,The Treasurer to the Queen,50002650,"118,875.00",Marlborough House-February 2017 grant
Department for Culture Media and Sport,Department for Culture Media and Sport,01/02/2017,Grant-in-Aid (DCMS NDPBs),OFCOM,OFCOM,50002669,"145,816.00",Ofcom Orphan Feb 2017 GIA payment
Department for Culture Media and Sport,Department for Culture Media and Sport,01/02/2017,Grant-in-Aid (DCMS NDPBs),GIA Museums & Galleries,Geffrye Museum,50002663,"149,666.00",Geffrye Museum Feb 2017 GIA payment
Department for Culture Media and Sport,Department for Culture Media and Sport,01/02/2017,Grant-in-Aid (DCMS NDPBs),GIA Museums & Galleries,Wallace Collection,50002694,"200,000.00",TWC February 2017 GIA Payment
Department for Culture Media and Sport,Department for Culture Media and Sport,01/02/2017,Grant-in-Aid (DCMS NDPBs),GIA Architecture+Heritage,Churches Conservation Trust,50002678,"249,000.00",CCT - February 2017 GIA payment
Department for Culture Media and Sport,Department for Culture Media and Sport,01/02/2017,Grant-in-Aid (DCMS NDPBs),GIA Architecture+Heritage,Churches Conservation Trust,50002687,"249,000.00",CCT February 2017 GIAPayment
Department for Culture Media and Sport,Department for Culture Media and Sport,01/02/2017,Grant-in-Aid (DCMS NDPBs),GIA Sports bodies,United Kingdom Anti Doping Ltd,50002673,"350,000.00",UKAD - February 2017 GIA payment
Department for Culture Media and Sport,Department for Culture Media and Sport,01/02/2017,Grant-in-Aid (DCMS NDPBs),GIA Museums & Galleries,Horniman Museum,50002658,"425,087.00",HM Feb 2017 GIA payment
Department for Culture Media and Sport,Department for Culture Media and Sport,01/02/2017,Grant-in-Aid (DCMS NDPBs),GIA Museums & Galleries,National Portrait Gallery,50002661,"553,083.00",NPG Feb 17 GIA payment
Department for Culture Media and Sport,Department for Culture Media and Sport,01/02/2017,Grant-in-Aid (DCMS NDPBs),GIA S4C Welsh Fourth Channel,S4C-Sianel Pedwar Cymru-all inv inc. GIA,50002681,"564,000.00",S4C Feb 2017 Grant-in-Aid Payment
Department for Culture Media and Sport,Department for Culture Media and Sport,01/02/2017,Grant-in-Aid (DCMS NDPBs),GIA Museums & Galleries,The Royal Armouries,50002674,"574,192.00",RA Feb 2017 GIA payment
Department for Culture Media and Sport,Department for Culture Media and Sport,01/02/2017,Grant-in-Aid (DCMS NDPBs),GIA Museums & Galleries,National Museums & Galleries Merseyside,50002664,"1,876,689.00",NML Feb 2017 GIA payment
Department for Culture Media and Sport,Department for Culture Media and Sport,01/02/2017,Grant-in-Aid (DCMS NDPBs),GIA Museums & Galleries,Imperial War Museum,50002655,"2,140,553.00",IWM Feb GIA 2017 payment
Department for Culture Media and Sport,Department for Culture Media and Sport,01/02/2017,Grant-in-Aid (DCMS NDPBs),GIA British Film Institute,British Film Institute,50002677,"2,274,825.00",BFI - February 2017 GIA payment
Department for Culture Media and Sport,Department for Culture Media and Sport,01/02/2017,Grant-in-Aid (DCMS NDPBs),GIA Museums & Galleries,Victoria & Albert Museum,50002659,"3,223,916.00",VAM - February 2017 GIA Payment
Department for Culture Media and Sport,Department for Culture Media and Sport,01/02/2017,Grant-in-Aid (DCMS NDPBs),GIA Museums & Galleries,Science Museum Group (ex-NMSI),50002670,"3,479,417.00",SMG - February 2017 GIA payment
Department for Culture Media and Sport,Department for Culture Media and Sport,01/02/2017,Grant-in-Aid (DCMS NDPBs),GIA Architecture+Heritage,National Heritage Memorial Fund,50002683,"3,750,000.00",NHMF February 2017 Grant-in-Aid Payment
Department for Culture Media and Sport,Department for Culture Media and Sport,01/02/2017,Capital Grant Private Sector,Broadband UK Capital+Programme,Arqiva Ltd,50002719,"3,860,936.55",BDUK Mobile Infrastructure Grant Claim
Department for Culture Media and Sport,Department for Culture Media and Sport,01/02/2017,Grant-in-Aid (DCMS NDPBs),GIA Museums & Galleries,British Museum,50002668,"3,899,000.00",BM - February 2017 GIA payment
Department for Culture Media and Sport,Department for Culture Media and Sport,01/02/2017,Grant-in-Aid (DCMS NDPBs),OFCOM,OFCOM,50002676,"3,988,924.00",Ofcom 700MHz Feb 2017 GIA payment
Department for Culture Media and Sport,Department for Culture Media and Sport,01/02/2017,Grant-in-Aid (DCMS NDPBs),GIA Museums & Galleries,Natural History Museum,50002660,"4,093,000.00",NHM Feb 2017 GIA payment
Department for Culture Media and Sport,Department for Culture Media and Sport,01/02/2017,Grant-in-Aid (DCMS NDPBs),OFCOM,OFCOM,50002685,"4,177,821.00",SpectrumManagement FEB 2017 GIA Payment
Department for Culture Media and Sport,Department for Culture Media and Sport,01/02/2017,Grant-in-Aid (DCMS NDPBs),GIA Sports bodies,Sport England,50002671,"6,000,000.00",SE - February 2017 GIA payment
Department for Culture Media and Sport,Department for Culture Media and Sport,01/02/2017,Grant-in-Aid (DCMS NDPBs),GIA Tourism bodies,VisitBritain,50002680,"7,750,000.00",VB Feb 2017 Grant-in-Aid Payment
Department for Culture Media and Sport,Department for Culture Media and Sport,01/02/2017,Grant-in-Aid (DCMS NDPBs),GIA Libraries bodies,British Library,50002684,"13,615,046.00",BL-FEBRUARY 2017 GIA PAYMENT
Department for Culture Media and Sport,Department for Culture Media and Sport,01/02/2017,Grant-in-Aid (DCMS NDPBs),GIA Arts bodies,Arts Council of England,50002691,"19,232,902.00",ACE FEB17 GIA Payment
Department for Culture Media and Sport,Department for Culture Media and Sport,01/02/2017,Grant to BBC:Home Broadcasting,Home Broadcasting:Grant to BBC,British Broadcasting Corporation,50002710,"35,056,250.00",BBC February 2017 PT1
Department for Culture Media and Sport,Department for Culture Media and Sport,02/02/2017,Finance & Accounting Services,ISSC1 Shared Services Project,Historic England,30049248,"37,471.75",Monthly Service Charge Jan 17
Department for Culture Media and Sport,Department for Culture Media and Sport,03/02/2017,Grant-in-Aid (DCMS NDPBs),GIA Gambling + Lottery bodies,National Lottery Commission,50002693,"267,775.00",NLC Feb 2017 Grant-in-Aid Payment
Department for Culture Media and Sport,Department for Culture Media and Sport,03/02/2017,Current Grants Private Sector,LPW and Ecclesiastical,Topmark Claims Management Ltd,50002720,"899,816.06",Funding for Listed Places of Worship
Department for Culture Media and Sport,Department for Culture Media and Sport,03/02/2017,Grant-in-Aid (DCMS NDPBs),GIA Museums & Galleries,National Maritime Museum,50002656,"1,519,670.00",RMG Feb 2017 GIA payment
Department for Culture Media and Sport,Department for Culture Media and Sport,03/02/2017,Grant-in-Aid (DCMS NDPBs),GIA Museums & Galleries,Tate Gallery,50002688,"3,487,584.00",TATE FEB 2017 GIA PAYMENT
Department for Culture Media and Sport,Department for Culture Media and Sport,03/02/2017,Grant-in-Aid (DCMS NDPBs),GIA Sports bodies,United Kingdom Sports Council,50002679,"6,453,722.00",UKS - February 2017 GIA payment
Department for Culture Media and Sport,Department for Culture Media and Sport,03/02/2017,Grant-in-Aid (DCMS NDPBs),GIA Architecture+Heritage,Historic England (GIA),50002690,"6,500,000.00",HE GIA FEB 2017 PAYMENT
Department for Culture Media and Sport,Department for Culture Media and Sport,06/02/2017,Finance & Accounting Services,Finance,Liberata UK Ltd,30049253,"25,833.33",COSTS FOR ACCOUNTING SERVICES JAN 17
Department for Culture Media and Sport,Department for Culture Media and Sport,06/02/2017,Capital Grants to LAs,Broadband UK Capital+Programme,Cornwall Council,50002726,"503,962.00",BDUK Superfast Britain Milestone Grant Claim 
Department for Culture Media and Sport,Department for Culture Media and Sport,07/02/2017,Current Grants Private Sector,Museums - programme costs,Bristol Aero Collection Trust,50002708,"235,196.87",1st pymnt of 2016/17 LIBOR grant 
Department for Culture Media and Sport,Department for Culture Media and Sport,07/02/2017,Capital Grant Private Sector,Museums - programme costs,ss Great Britain Trust,50002709,"313,252.00",Brunel Museum grant 16/17 - Tranche 3
Department for Culture Media and Sport,Department for Culture Media and Sport,09/02/2017,Current Grants Private Sector,LPW and Ecclesiastical,The Archbishops Council,50002729,"31,809.28",Gloucester Cathedral Grant Claim February 2017
Department for Culture Media and Sport,Department for Culture Media and Sport,09/02/2017,Current Grants Private Sector,LPW and Ecclesiastical,The Archbishops Council,50002736,"42,292.89",Worcester Cathedral Grant Claim February 2017
Department for Culture Media and Sport,Department for Culture Media and Sport,09/02/2017,Current Grants Private Sector,LPW and Ecclesiastical,The Archbishops Council,50002733,"61,736.48",Sheffield Cathedral Grant Claim February 2017
Department for Culture Media and Sport,Department for Culture Media and Sport,09/02/2017,Current Grants Private Sector,LPW and Ecclesiastical,The Archbishops Council,50002732,"62,004.64",Lichfield Cathedral Grant Claim February 2017
Department for Culture Media and Sport,Department for Culture Media and Sport,09/02/2017,Current Grants Private Sector,LPW and Ecclesiastical,The Archbishops Council,50002731,"132,653.85",Debry Cathedral Grant Claim February 2017
Department for Culture Media and Sport,Department for Culture Media and Sport,09/02/2017,Capital Grants to LAs,Broadband UK Capital+Programme,NYnet Ltd,50002737,"152,932.60",BDUK Superfast Grant Claim
Department for Culture Media and Sport,Department for Culture Media and Sport,09/02/2017,Grant to BBC:Home Broadcasting,Home Broadcasting:Grant to BBC,British Broadcasting Corporation,50002711,"35,056,250.00",BBC February 2017 PT2
Department for Culture Media and Sport,Department for Culture Media and Sport,10/02/2017,T&S UK (Officials only),Procurement,Redfern Travel Limited,30049267,"66,724.65",Travel costs for January 2017
Department for Culture Media and Sport,Department for Culture Media and Sport,10/02/2017,T&S UK (Officials only),Procurement,Redfern Travel Limited,30049267,"66,724.65",Travel costs for January 2017
Department for Culture Media and Sport,Department for Culture Media and Sport,10/02/2017,Current Grants Private Sector,LPW and Ecclesiastical,Topmark Claims Management Ltd,50002740,"614,017.20",Funding for Listed Places of Worship
Department for Culture Media and Sport,Department for Culture Media and Sport,13/02/2017,VAT-Recoverable Contracted-Out,Misc Balance Sheet,Government Legal Department,30049302,"116,450.00",GLD Annual Capitation Costs
Department for Culture Media and Sport,Department for Culture Media and Sport,13/02/2017,TSOL Advice Billed Hours,Legal Advisers to DCMS (TSOL),Government Legal Department,30049302,"582,250.00",GLD Annual Capitation Costs
Department for Culture Media and Sport,Department for Culture Media and Sport,13/02/2017,Grant to BBC:Home Broadcasting,Home Broadcasting:Grant to BBC,British Broadcasting Corporation,50002712,"140,225,000.00",BBC February 2017 PT3
Department for Culture Media and Sport,Department for Culture Media and Sport,14/02/2017,Mailroom Services,Estates & Property Services,HM Revenue & Customs,30049275,"1,232,920.72",Q2 Charges 1617 DCMS
Department for Culture Media and Sport,Department for Culture Media and Sport,14/02/2017,Mailroom Services,Estates & Property Services,HM Revenue & Customs,30049275,"1,232,920.72",Q2 Charges 1617 DCMS
Department for Culture Media and Sport,Department for Culture Media and Sport,14/02/2017,Mailroom Services,Estates & Property Services,HM Revenue & Customs,30049275,"1,232,920.72",Q2 Charges 1617 DCMS
Department for Culture Media and Sport,Department for Culture Media and Sport,14/02/2017,Grant-in-Aid (DCMS NDPBs),GIA Sports bodies,United Kingdom Sports Council,50002749,"1,400,000.00",UKS February2017 GIA Payment
Department for Culture Media and Sport,Department for Culture Media and Sport,15/02/2017,Tribunal Administration Fees,Sports - Programme Costs,Sport Resolutions (UK),30049272,"26,780.00",SERVICE CONTRACT JAN 2017
Department for Culture Media and Sport,Department for Culture Media and Sport,16/02/2017,Current Grants Private Sector,DD2 Program,TECH CITY (UK) LTD,50002757,"143,444.00",January grant claim for Tech North
Department for Culture Media and Sport,Department for Culture Media and Sport,16/02/2017,Grant to OGD (Resource),OFCOM,OFCOM,50002754,"191,135.00",Ofcom Community Radio Feb 2017 Grant Payment
Department for Culture Media and Sport,Department for Culture Media and Sport,16/02/2017,Current Grants Private Sector,DD2 Program,TECH CITY (UK) LTD,50002758,"248,711.00",January grant claim for Tech City UK
Department for Culture Media and Sport,Department for Culture Media and Sport,16/02/2017,Grant to BBC:Home Broadcasting,Home Broadcasting:Grant to BBC,British Broadcasting Corporation,50002713,"35,056,250.00",BBC February 2017 PT4
Department for Culture Media and Sport,Department for Culture Media and Sport,17/02/2017,Current Grants Private Sector,DD3 Program,"Royal Holloway, University of London",50002707,"39,200.00",Payment of bursary
Department for Culture Media and Sport,Department for Culture Media and Sport,17/02/2017,Current Grants Private Sector,DD3 Program,University of Oxford,50002698,"53,080.00",Payment of bursary
Department for Culture Media and Sport,Department for Culture Media and Sport,17/02/2017,Current Grants Private Sector,LPW and Ecclesiastical,Topmark Claims Management Ltd,50002763,"803,640.63",Funding for Listed Places of Worship
Department for Culture Media and Sport,Department for Culture Media and Sport,21/02/2017,Ceremonials - Other Costs,World War I Centenary Prog,M-Integrated Solutions PLC,30049246,"105,472.75",Final Fees/Services for Battle of Jutland
Department for Culture Media and Sport,Department for Culture Media and Sport,21/02/2017,Ceremonials - Other Costs,World War I Centenary Prog,M-Integrated Solutions PLC,30049246,"105,472.75",Final Fees/Services for Battle of Jutland
Department for Culture Media and Sport,Department for Culture Media and Sport,22/02/2017,Current Grants Private Sector,DD3 Program,University of York,50002781,"28,000.00",Payment of bursary
Department for Culture Media and Sport,Department for Culture Media and Sport,22/02/2017,Capital Grant Private Sector,Grant support to NFTS,National Film & Television School,50002747,"210,073.00",NFTS - February 2017 grant payment
Department for Culture Media and Sport,Department for Culture Media and Sport,22/02/2017,Capital Grant Private Sector,Grant support to NFTS,National Film & Television School,50002747,"210,073.00",NFTS - February 2017 grant payment
Department for Culture Media and Sport,Department for Culture Media and Sport,23/02/2017,Current Grants Private Sector,DD2 Program,Engineering and Physical Sciences Resear,50002764,"2,216,521.00",Q1-Q3 grant claim for EPSRC
Department for Culture Media and Sport,Department for Culture Media and Sport,23/02/2017,Grant to BBC:Home Broadcasting,Home Broadcasting:Grant to BBC,British Broadcasting Corporation,50002714,"35,056,250.00",BBC February 2017 PT5
Department for Culture Media and Sport,Department for Culture Media and Sport,24/02/2017,Capital Grant Private Sector,DAB Digital Radio,MuxCo Wales Ltd,50002682,"42,306.00",Grant funding for Local DAB services
Department for Culture Media and Sport,Department for Culture Media and Sport,24/02/2017,Capital Grants to LAs,Broadband UK Capital+Programme,Somerset County Council,50002798,"246,903.00",BDUK Superfast Britain Milestone Grant Claim 
Department for Culture Media and Sport,Department for Culture Media and Sport,24/02/2017,Current Grants Private Sector,LPW and Ecclesiastical,Topmark Claims Management Ltd,50002813,"456,259.45",Funding for Listed Places of Worship
Department for Culture Media and Sport,Department for Culture Media and Sport,24/02/2017,Capital Grants to LAs,Broadband UK Capital+Programme,Swindon Borough Council,50002797,"537,906.00",BDUK Superfast Britain Milestone Grant Claim 
Department for Culture Media and Sport,Department for Culture Media and Sport,24/02/2017,Capital Grants to LAs,Broadband UK Capital+Programme,Essex County Council,50002806,"698,136.00",BDUK Superfast Britain Milestone Grant Claim 
Department for Culture Media and Sport,Department for Culture Media and Sport,24/02/2017,Capital Grants to LAs,Broadband UK Capital+Programme,West Berkshire Council,50002796,"702,747.00",BDUK Superfast Britain Milestone Grant Claim 
Department for Culture Media and Sport,Department for Culture Media and Sport,28/02/2017,Current Grants Private Sector,DD3 Program,University of Surrey,50002706,"32,000.00",Payment of bursary
Department for Culture Media and Sport,Department for Culture Media and Sport,28/02/2017,Current Grants Private Sector,DD2 Program,National College for Digital Skills,50002792,"43,410.00",Grant payment
Department for Culture Media and Sport,Department for Culture Media and Sport,28/02/2017,Current Grants Private Sector,DD3 Program,"Royal Holloway, University of London",50002738,"59,920.00",Payment of DCMS MSc Bursaries
1,,,,,,,,
